[Event "Open NK Rapid 2025"]
[Site "Helmond, Netherlands"]
[Date "2025.05.03"]
[Round "3.15"]
[White "Grooten, Herman"]
[Black "Fransen, Jean-Paul"]
[Result "1-0"]
[TimeControl "15+5"]
[WhiteFideId "1000330"]
[BlackFideId "40101487"]
[WhiteElo "2219"]
[BlackElo "1964"]

1. d4 {[%emt 00:00:03]} Nf6 {[%emt 00:00:06]} 2. c4 {[%clk 00:14:58]} {[%emt
00:00:03]} c5 {[%clk 00:14:51]} {[%emt 00:00:19]} 3. d5 {[%clk 00:15:01]}
{[%emt 00:00:02]} b5 {[%clk 00:14:56]} 4. cxb5 {[%clk 00:15:05]} a6 {[%clk
00:15:00]} {[%emt 00:00:01]} 5. b6 {[%clk 00:15:09]} Qxb6 {[%clk 00:15:03]}
{[%emt 00:00:02]} 6. Nc3 {[%clk 00:15:13]} d6 {[%clk 00:15:06]} {[%emt
00:00:02]} 7. e4 {[%clk 00:15:17]} {[%emt 00:00:01]} g6 {[%clk 00:15:10]}
{[%emt 00:00:01]} 8. Nf3 {[%clk 00:15:20]} {[%emt 00:00:02]} Bg7 {[%clk
00:15:14]} {[%emt 00:00:01]} 9. Nd2 {[%clk 00:15:23]} {[%emt 00:00:02]} O-O
{[%clk 00:15:12]} {[%emt 00:00:07]} 10. Be2 {[%clk 00:15:27]} {[%emt 00:00:01]}
Bd7 {[%clk 00:15:00]} {[%emt 00:00:17]} 11. a4 {[%clk 00:15:29]} {[%emt
00:00:03]} h5 {[%clk 00:14:38]} {[%emt 00:00:27]} 12. Nc4 {[%clk 00:15:28]}
{[%emt 00:00:06]} Qc7 {[%clk 00:14:37]} {[%emt 00:00:05]} 13. h3 {[%clk
00:15:27]} {[%emt 00:00:07]} a5 {[%clk 00:14:29]} {[%emt 00:00:13]} 14. g4
{[%clk 00:15:19]} {[%emt 00:00:12]} hxg4 {[%clk 00:14:18]} {[%emt 00:00:17]} 15.
hxg4 {[%clk 00:15:23]} {[%emt 00:00:01]} Ra6 {[%clk 00:14:15]} {[%emt
00:00:08]} 16. g5 {[%clk 00:15:23]} {[%emt 00:00:05]} Ne8 {[%clk 00:14:09]}
{[%emt 00:00:11]} 17. Bg4 {[%clk 00:14:54]} {[%emt 00:00:34]} f5 {[%clk
00:13:53]} {[%emt 00:00:21]} 18. gxf6 {[%clk 00:14:54]} {[%emt 00:00:05]} Nxf6
{[%clk 00:13:56]} {[%emt 00:00:02]} 19. Bxd7 {[%clk 00:14:11]} {[%emt
00:00:48]} Qxd7 {[%clk 00:13:47]} {[%emt 00:00:13]} 20. Bg5 {[%clk 00:13:41]}
{[%emt 00:00:36]} e6 {[%clk 00:13:44]} {[%emt 00:00:08]} 21. Qd3 {[%clk
00:13:29]} {[%emt 00:00:16]} exd5 {[%clk 00:13:15]} {[%emt 00:00:35]} 22. Bxf6
{[%clk 00:13:03]} {[%emt 00:00:31]} dxc4 {[%clk 00:09:16]} {[%emt 00:04:04]} 23.
Qxc4+ {[%clk 00:12:40]} {[%emt 00:00:27]} Qf7 {[%clk 00:09:01]} {[%emt
00:00:21]} 24. Nd5 {[%clk 00:12:42]} {[%emt 00:00:03]} Bxf6 {[%clk 00:08:07]}
{[%emt 00:00:59]} 25. Nxf6+ {[%clk 00:12:44]} {[%emt 00:00:03]} Kg7 {[%clk
00:07:56]} {[%emt 00:00:16]} 26. e5 {[%clk 00:11:27]} {[%emt 00:01:22]} dxe5
{[%clk 00:07:30]} {[%emt 00:00:31]} 27. Rh7+ {[%clk 00:11:29]} {[%emt
00:00:03]} Kxf6 {[%clk 00:07:29]} {[%emt 00:00:05]} 28. Rxf7+ {[%clk 00:11:29]}
{[%emt 00:00:06]} Rxf7 {[%clk 00:07:30]} {[%emt 00:00:05]} 29. O-O-O {[%clk
00:11:06]} {[%emt 00:00:28]} Rb6 {[%clk 00:07:04]} {[%emt 00:00:30]} 30. Qxc5
{[%emt 00:00:08]} Rc6 {[%clk 00:07:04]} {[%emt 00:00:03]} 31. Rd6+ {[%clk
00:11:09]} {[%emt 00:00:01]} 1-0

[Event "Open NK Rapid 2025"]
[Site "Helmond, Netherlands"]
[Date "2025.05.03"]
[Round "3.16"]
[White "Van Batenburg, Mees"]
[Black "Kurt, Sascha"]
[Result "0-1"]
[TimeControl "15+5"]
[WhiteFideId "1078259"]
[BlackFideId "1082647"]
[WhiteElo "2217"]
[BlackElo "1953"]

1. d4 {[%clk 00:15:09]} Nf6 {[%clk 00:15:02]} {[%emt 00:00:09]} 2. Nf3 {[%clk
00:15:12]} {[%emt 00:00:01]} d5 {[%clk 00:15:06]} 3. Bf4 {[%clk 00:15:16]}
{[%emt 00:00:02]} c5 {[%clk 00:15:04]} {[%emt 00:00:07]} 4. e3 {[%clk
00:15:19]} {[%emt 00:00:01]} Nc6 {[%clk 00:14:58]} {[%emt 00:00:12]} 5. Nbd2
{[%clk 00:15:22]} {[%emt 00:00:02]} e6 {[%clk 00:14:53]} {[%emt 00:00:10]} 6.
c3 {[%clk 00:15:24]} {[%emt 00:00:02]} cxd4 {[%clk 00:14:44]} {[%emt 00:00:15]}
7. exd4 {[%clk 00:15:25]} {[%emt 00:00:03]} Nh5 {[%clk 00:14:46]} {[%emt
00:00:03]} 8. Be3 {[%clk 00:15:28]} {[%emt 00:00:03]} Bd6 {[%clk 00:14:47]}
{[%emt 00:00:04]} 9. Bb5 {[%clk 00:15:21]} {[%emt 00:00:12]} Bd7 {[%clk
00:14:40]} {[%emt 00:00:11]} 10. O-O {[%clk 00:14:52]} {[%emt 00:00:34]} O-O
{[%clk 00:14:42]} {[%emt 00:00:03]} 11. Re1 {[%clk 00:14:45]} {[%emt 00:00:12]}
Nf4 {[%clk 00:14:38]} {[%emt 00:00:10]} 12. g3 {[%clk 00:13:47]} {[%emt
00:01:02]} Ng6 {[%clk 00:14:39]} {[%emt 00:00:05]} 13. h4 {[%clk 00:13:50]}
{[%emt 00:00:02]} a6 {[%clk 00:14:42]} {[%emt 00:00:03]} 14. Bd3 {[%clk
00:12:58]} {[%emt 00:00:55]} Qc7 {[%clk 00:14:41]} {[%emt 00:00:06]} 15. Kg2
{[%clk 00:12:48]} {[%emt 00:00:15]} e5 {[%clk 00:13:46]} {[%emt 00:01:01]} 16.
Bxg6 {[%clk 00:11:47]} {[%emt 00:01:06]} hxg6 {[%clk 00:13:46]} {[%emt
00:00:05]} 17. dxe5 {[%clk 00:11:51]} {[%emt 00:00:01]} Nxe5 {[%clk 00:13:49]}
{[%emt 00:00:02]} 18. Nxe5 {[%clk 00:11:54]} {[%emt 00:00:01]} Bxe5 {[%clk
00:13:53]} {[%emt 00:00:02]} 19. Nf3 {[%clk 00:11:58]} {[%emt 00:00:01]} Bc6
{[%clk 00:13:37]} {[%emt 00:00:21]} 20. Nxe5 {[%clk 00:11:02]} {[%emt
00:01:01]} Qxe5 {[%clk 00:13:39]} {[%emt 00:00:03]} 21. Bd4 {[%clk 00:11:05]}
{[%emt 00:00:01]} Qf5 {[%clk 00:13:30]} {[%emt 00:00:14]} 22. Re5 {[%clk
00:10:57]} {[%emt 00:00:13]} Qd7 {[%clk 00:13:23]} {[%emt 00:00:13]} 23. h5
{[%clk 00:10:45]} {[%emt 00:00:17]} Rfe8 {[%clk 00:11:45]} {[%emt 00:01:42]} 24.
hxg6 {[%clk 00:09:15]} {[%emt 00:01:36]} Rxe5 {[%clk 00:11:48]} {[%emt
00:00:02]} 25. gxf7+ {[%clk 00:08:01]} {[%emt 00:01:18]} Qxf7 {[%clk 00:11:19]}
{[%emt 00:00:34]} 26. Bxe5 {[%clk 00:08:05]} {[%emt 00:00:02]} d4+ {[%clk
00:11:23]} {[%emt 00:00:01]} 27. Kg1 {[%clk 00:07:57]} {[%emt 00:00:12]} Qd5
{[%clk 00:11:15]} {[%emt 00:00:14]} 28. Qb3 {[%clk 00:08:01]} {[%emt 00:00:02]}
Qxb3 {[%clk 00:11:02]} {[%emt 00:00:17]} 29. axb3 {[%clk 00:08:05]} {[%emt
00:00:01]} dxc3 {[%clk 00:11:01]} {[%emt 00:00:06]} 30. bxc3 {[%clk 00:08:08]}
{[%emt 00:00:02]} Rd8 {[%clk 00:10:58]} {[%emt 00:00:08]} 31. Bd4 {[%clk
00:08:08]} {[%emt 00:00:05]} Re8 {[%clk 00:11:02]} {[%emt 00:00:01]} 32. Kf1
{[%clk 00:07:38]} {[%emt 00:00:34]} Kf7 {[%clk 00:11:03]} {[%emt 00:00:05]} 33.
Ra5 {[%clk 00:07:36]} {[%emt 00:00:06]} g6 {[%clk 00:10:56]} {[%emt 00:00:12]}
34. f4 {[%clk 00:07:06]} {[%emt 00:00:35]} Re4 {[%clk 00:10:39]} {[%emt
00:00:23]} 35. Kf2 {[%clk 00:07:05]} {[%emt 00:00:06]} Bb5 {[%clk 00:10:33]}
{[%emt 00:00:11]} 36. Be3 {[%clk 00:06:20]} {[%emt 00:00:50]} Re8 {[%clk
00:10:22]} {[%emt 00:00:16]} 37. c4 {[%clk 00:05:54]} {[%emt 00:00:31]} Bc6
{[%clk 00:10:25]} {[%emt 00:00:01]} 38. Bd4 {[%clk 00:05:50]} {[%emt 00:00:09]}
Rd8 {[%clk 00:10:21]} {[%emt 00:00:09]} 39. Ke3 {[%clk 00:05:53]} {[%emt
00:00:03]} Re8+ {[%clk 00:10:25]} {[%emt 00:00:02]} 40. Be5 {[%clk 00:05:56]}
{[%emt 00:00:01]} Rd8 {[%clk 00:10:24]} {[%emt 00:00:06]} 41. Ra1 {[%clk
00:05:55]} {[%emt 00:00:05]} Ke6 {[%clk 00:09:54]} {[%emt 00:00:35]} 42. Bc3
{[%clk 00:05:26]} {[%emt 00:00:34]} Kf7 {[%clk 00:09:42]} {[%emt 00:00:18]} 43.
Rf1 {[%clk 00:04:49]} {[%emt 00:00:41]} Ke6 {[%clk 00:09:36]} {[%emt 00:00:12]}
44. Be5 {[%clk 00:04:38]} {[%emt 00:00:16]} Kf5 {[%clk 00:09:26]} {[%emt
00:00:14]} 45. Ra1 {[%clk 00:03:32]} {[%emt 00:01:11]} Ke6 {[%emt 00:00:40]} 46.
Bc3 {[%clk 00:03:29]} Kf7 {[%clk 00:09:03]} {[%emt 00:00:02]} 47. Ke2 {[%clk
00:03:13]} {[%emt 00:00:21]} Bd7 {[%clk 00:08:57]} {[%emt 00:00:10]} 48. Rh1
{[%clk 00:03:05]} {[%emt 00:00:14]} Bc6 {[%clk 00:08:47]} {[%emt 00:00:15]} 49.
Rh7+ {[%clk 00:03:08]} {[%emt 00:00:02]} Ke6 {[%clk 00:08:51]} {[%emt
00:00:01]} 50. Be5 {[%clk 00:03:11]} {[%emt 00:00:01]} Rd7 {[%clk 00:08:48]}
{[%emt 00:00:08]} 51. Rh8 {[%clk 00:03:14]} {[%emt 00:00:03]} Kf5 {[%clk
00:08:37]} {[%emt 00:00:15]} 52. Rg8 {[%clk 00:03:04]} {[%emt 00:00:15]} Be4
{[%clk 00:08:29]} {[%emt 00:00:13]} 53. c5 {[%clk 00:01:20]} {[%emt 00:01:50]}
Kg4 {[%clk 00:08:09]} {[%emt 00:00:24]} 54. Bd6 {[%clk 00:01:20]} {[%emt
00:00:06]} Rh7 {[%clk 00:08:03]} {[%emt 00:00:11]} 55. Ke3 {[%clk 00:01:21]}
{[%emt 00:00:04]} Bf5 {[%clk 00:07:59]} {[%emt 00:00:08]} 56. Be5 {[%clk
00:01:16]} {[%emt 00:00:11]} Kxg3 {[%clk 00:07:59]} {[%emt 00:00:05]} 57. Rxg6
{[%clk 00:00:56]} {[%emt 00:00:25]} Bxg6 {[%clk 00:08:03]} 58. f5 {[%clk
00:01:01]} Kg4 {[%clk 00:08:06]} {[%emt 00:00:02]} 59. fxg6 {[%clk 00:01:04]}
{[%emt 00:00:01]} Re7 {[%clk 00:07:57]} {[%emt 00:00:15]} 60. Ke4 {[%clk
00:01:09]} Kg5 {[%clk 00:07:18]} {[%emt 00:00:43]} 61. g7 {[%clk 00:01:12]}
{[%emt 00:00:01]} Re8 {[%clk 00:07:23]} {[%emt 00:00:01]} 62. Kd5 {[%clk
00:01:09]} {[%emt 00:00:09]} Kg6 {[%clk 00:07:25]} {[%emt 00:00:02]} 63. Bd4
{[%clk 00:00:13]} {[%emt 00:01:00]} Kf7 {[%clk 00:07:27]} {[%emt 00:00:03]} 64.
c6 {[%clk 00:00:08]} {[%emt 00:00:11]} Rd8+ {[%clk 00:07:26]} {[%emt 00:00:07]}
65. Kc5 {[%clk 00:00:08]} {[%emt 00:00:04]} bxc6 {[%clk 00:07:29]} {[%emt
00:00:02]} 66. Bc3 {[%clk 00:00:12]} {[%emt 00:00:01]} Rd3 {[%clk 00:07:24]}
{[%emt 00:00:10]} 67. Ba1 {[%clk 00:00:09]} {[%emt 00:00:08]} Rxb3 {[%clk
00:07:26]} {[%emt 00:00:03]} 68. Kxc6 {[%clk 00:00:12]} {[%emt 00:00:01]} a5
{[%clk 00:07:29]} {[%emt 00:00:03]} 69. Kc5 {[%clk 00:00:10]} {[%emt 00:00:07]}
a4 {[%clk 00:07:33]} {[%emt 00:00:01]} 70. Kc4 {[%clk 00:00:13]} {[%emt
00:00:02]} Rb1 {[%clk 00:07:36]} {[%emt 00:00:03]} 71. Bd4 {[%clk 00:00:13]}
{[%emt 00:00:04]} a3 {[%clk 00:07:38]} {[%emt 00:00:03]} 72. Kc3 {[%clk
00:00:17]} {[%emt 00:00:01]} a2 {[%clk 00:07:41]} {[%emt 00:00:02]} 0-1

[Event "Open NK Rapid 2025"]
[Site "Helmond, Netherlands"]
[Date "2025.05.03"]
[Round "3.17"]
[White "Moskalets, Sofiia"]
[Black "Smeets, Kobe"]
[Result "1/2-1/2"]
[TimeControl "15+5"]
[WhiteFideId "34144293"]
[BlackFideId "1063910"]
[WhiteElo "1938"]
[BlackElo "2192"]

1. e4 {[%clk 00:15:07]} {[%emt 00:00:03]} c5 {[%clk 00:15:09]} {[%emt
00:00:02]} 2. Nf3 {[%clk 00:15:11]} d6 {[%clk 00:15:14]} {[%emt 00:00:01]} 3.
d4 {[%clk 00:15:15]} {[%emt 00:00:01]} cxd4 {[%clk 00:15:18]} 4. Nxd4 {[%clk
00:15:19]} {[%emt 00:00:01]} Nf6 {[%clk 00:15:22]} 5. Nc3 {[%clk 00:15:22]} Nc6
{[%clk 00:15:26]} 6. Bg5 {[%clk 00:15:21]} {[%emt 00:00:06]} Bd7 {[%clk
00:15:30]} {[%emt 00:00:01]} 7. Qd2 {[%clk 00:15:18]} {[%emt 00:00:08]} a6
{[%clk 00:15:34]} {[%emt 00:00:01]} 8. O-O-O {[%clk 00:14:39]} {[%emt
00:00:43]} e6 {[%clk 00:15:38]} {[%emt 00:00:02]} 9. f4 {[%clk 00:14:31]}
{[%emt 00:00:13]} Be7 {[%clk 00:15:42]} {[%emt 00:00:01]} 10. Nf3 {[%clk
00:14:31]} {[%emt 00:00:05]} b5 {[%clk 00:15:46]} {[%emt 00:00:02]} 11. e5
{[%clk 00:12:30]} {[%emt 00:02:05]} b4 {[%clk 00:15:50]} 12. exf6 {[%clk
00:12:13]} {[%emt 00:00:22]} bxc3 {[%clk 00:15:53]} {[%emt 00:00:03]} 13. Qxc3
{[%clk 00:12:14]} {[%emt 00:00:03]} gxf6 {[%clk 00:15:55]} {[%emt 00:00:02]} 14.
Bh4 {[%clk 00:11:54]} {[%emt 00:00:26]} Rg8 {[%clk 00:15:59]} {[%emt 00:00:01]}
15. Bd3 {[%clk 00:10:33]} {[%emt 00:01:25]} a5 {[%clk 00:15:31]} {[%emt
00:00:34]} 16. a3 {[%clk 00:10:11]} {[%emt 00:00:27]} Qb6 {[%clk 00:14:47]}
{[%emt 00:00:49]} 17. Bxf6 {[%clk 00:08:01]} {[%emt 00:02:14]} Rxg2 {[%clk
00:14:51]} {[%emt 00:00:02]} 18. Bxe7 {[%clk 00:07:28]} {[%emt 00:00:38]} Kxe7
{[%clk 00:14:07]} {[%emt 00:00:49]} 19. Be4 {[%clk 00:05:42]} {[%emt 00:01:51]}
Rc8 {[%clk 00:13:39]} {[%emt 00:00:33]} 20. Qd3 {[%clk 00:05:39]} {[%emt
00:00:08]} d5 {[%clk 00:12:38]} {[%emt 00:01:06]} 21. Ng5 {[%clk 00:04:36]}
{[%emt 00:01:07]} Rxg5 {[%clk 00:11:16]} {[%emt 00:01:27]} 22. fxg5 {[%clk
00:04:38]} {[%emt 00:00:04]} Ne5 {[%clk 00:11:20]} {[%emt 00:00:01]} 23. Qg3
{[%clk 00:04:03]} {[%emt 00:00:40]} Nc4 {[%clk 00:08:07]} {[%emt 00:03:17]} 24.
Qc3 {[%clk 00:03:58]} {[%emt 00:00:11]} dxe4 {[%clk 00:03:57]} {[%emt
00:04:15]} 25. Qf6+ {[%clk 00:03:57]} {[%emt 00:00:06]} Ke8 {[%clk 00:03:58]}
{[%emt 00:00:03]} 26. Qh8+ {[%clk 00:04:01]} {[%emt 00:00:02]} Ke7 {[%clk
00:04:02]} 27. Qf6+ {[%clk 00:04:05]} {[%emt 00:00:01]} Ke8 {[%clk 00:04:05]}
{[%emt 00:00:02]} 28. Qh8+ {[%clk 00:00:50]} {[%emt 00:03:19]} 1/2-1/2

[Event "Open NK Rapid 2025"]
[Site "Helmond, Netherlands"]
[Date "2025.05.03"]
[Round "3.18"]
[White "Van Roon, Sjoerd"]
[Black "Kaufmann, Thomas"]
[Result "1-0"]
[TimeControl "15+5"]
[WhiteFideId "1051075"]
[BlackFideId "1084941"]
[WhiteElo "2179"]
[BlackElo "1939"]

1. e4 {[%clk 00:15:08]} {[%emt 00:00:01]} c5 {[%clk 00:15:09]} {[%emt
00:00:02]} 2. Nf3 {[%clk 00:15:12]} Nc6 {[%clk 00:15:12]} {[%emt 00:00:01]} 3.
d4 {[%clk 00:15:05]} {[%emt 00:00:12]} cxd4 {[%clk 00:15:12]} {[%emt 00:00:05]}
4. Nxd4 {[%clk 00:15:09]} {[%emt 00:00:02]} e5 {[%clk 00:15:15]} {[%emt
00:00:01]} 5. Nb5 {[%clk 00:15:12]} {[%emt 00:00:02]} d6 {[%clk 00:15:19]}
{[%emt 00:00:02]} 6. c4 {[%clk 00:15:13]} {[%emt 00:00:04]} Be6 {[%clk
00:15:21]} {[%emt 00:00:03]} 7. N1c3 {[%clk 00:15:09]} {[%emt 00:00:09]} a6
{[%clk 00:15:25]} {[%emt 00:00:01]} 8. Na3 {[%clk 00:15:13]} {[%emt 00:00:01]}
g6 {[%clk 00:15:19]} {[%emt 00:00:09]} 9. Bd3 {[%clk 00:15:09]} {[%emt
00:00:10]} Bg7 {[%clk 00:15:18]} {[%emt 00:00:06]} 10. Nc2 {[%clk 00:15:07]}
{[%emt 00:00:08]} Rc8 {[%clk 00:14:59]} {[%emt 00:00:23]} 11. b3 {[%clk
00:14:16]} {[%emt 00:00:57]} Nf6 {[%clk 00:14:09]} {[%emt 00:00:55]} 12. O-O
{[%clk 00:13:57]} {[%emt 00:00:23]} O-O {[%clk 00:14:11]} {[%emt 00:00:03]} 13.
Qd2 {[%clk 00:13:21]} {[%emt 00:00:41]} Ne7 {[%clk 00:12:44]} {[%emt 00:01:32]}
14. Ba3 {[%clk 00:12:52]} {[%emt 00:00:34]} Qc7 {[%clk 00:12:21]} {[%emt
00:00:28]} 15. Rac1 {[%clk 00:11:47]} {[%emt 00:01:10]} Rfd8 {[%clk 00:12:22]}
{[%emt 00:00:05]} 16. Rfd1 {[%clk 00:11:47]} {[%emt 00:00:05]} Nc6 {[%clk
00:11:33]} {[%emt 00:00:53]} 17. Nd5 {[%clk 00:11:21]} {[%emt 00:00:31]} Bxd5
{[%clk 00:11:25]} {[%emt 00:00:13]} 18. cxd5 {[%clk 00:11:24]} {[%emt
00:00:02]} Ne7 {[%clk 00:11:13]} {[%emt 00:00:17]} 19. Ne3 {[%clk 00:11:21]}
{[%emt 00:00:08]} Qd7 {[%clk 00:11:12]} {[%emt 00:00:06]} 20. Nc4 {[%clk
00:10:38]} {[%emt 00:00:48]} Rxc4 {[%clk 00:10:08]} {[%emt 00:01:09]} 21. Rxc4
{[%clk 00:10:23]} {[%emt 00:00:20]} b5 {[%clk 00:09:52]} {[%emt 00:00:21]} 22.
Rc2 {[%clk 00:10:15]} {[%emt 00:00:12]} Qg4 {[%clk 00:09:48]} {[%emt 00:00:10]}
23. f3 {[%clk 00:10:08]} {[%emt 00:00:13]} Qh4 {[%clk 00:09:41]} {[%emt
00:00:12]} 24. Qf2 {[%clk 00:09:40]} {[%emt 00:00:32]} Qf4 {[%clk 00:09:21]}
{[%emt 00:00:25]} 25. Bc1 {[%clk 00:09:36]} {[%emt 00:00:10]} Ng4 {[%clk
00:08:45]} {[%emt 00:00:40]} 26. fxg4 {[%clk 00:09:39]} {[%emt 00:00:02]} 1-0

[Event "Open NK Rapid 2025"]
[Site "Helmond, Netherlands"]
[Date "2025.05.03"]
[Round "3.19"]
[White "Garay, Enzo"]
[Black "Kazarjan, Gachatur"]
[Result "0-1"]
[TimeControl "15+5"]
[WhiteFideId "40104125"]
[BlackFideId "1068750"]
[WhiteElo "1933"]
[BlackElo "2155"]

1. d4 {[%clk 00:15:09]} {[%emt 00:00:01]} d5 {[%clk 00:14:59]} {[%emt
00:00:11]} 2. c4 {[%clk 00:15:12]} {[%emt 00:00:02]} e6 {[%clk 00:15:03]}
{[%emt 00:00:01]} 3. Nf3 {[%clk 00:15:15]} {[%emt 00:00:02]} c5 {[%clk
00:15:07]} 4. cxd5 {[%clk 00:15:08]} {[%emt 00:00:13]} exd5 {[%clk 00:15:08]}
{[%emt 00:00:04]} 5. dxc5 {[%clk 00:15:11]} {[%emt 00:00:02]} Bxc5 {[%clk
00:15:10]} {[%emt 00:00:02]} 6. e3 {[%clk 00:15:15]} {[%emt 00:00:02]} Nf6
{[%clk 00:15:14]} {[%emt 00:00:02]} 7. Nc3 {[%clk 00:15:18]} {[%emt 00:00:01]}
O-O {[%clk 00:15:16]} {[%emt 00:00:03]} 8. Be2 {[%clk 00:15:21]} {[%emt
00:00:01]} a6 {[%clk 00:15:20]} {[%emt 00:00:01]} 9. O-O {[%clk 00:15:23]}
{[%emt 00:00:03]} Nc6 {[%clk 00:15:24]} {[%emt 00:00:02]} 10. a3 {[%clk
00:15:17]} {[%emt 00:00:11]} Bf5 {[%clk 00:14:44]} {[%emt 00:00:46]} 11. b4
{[%clk 00:14:32]} {[%emt 00:00:48]} Ba7 {[%clk 00:14:45]} {[%emt 00:00:05]} 12.
Bb2 {[%clk 00:14:25]} {[%emt 00:00:11]} Rc8 {[%clk 00:14:49]} {[%emt 00:00:02]}
13. h3 {[%clk 00:13:53]} {[%emt 00:00:37]} Qe7 {[%clk 00:14:43]} {[%emt
00:00:11]} 14. Nxd5 {[%clk 00:13:31]} {[%emt 00:00:27]} Nxd5 {[%clk 00:14:45]}
{[%emt 00:00:04]} 15. Qxd5 {[%clk 00:13:33]} {[%emt 00:00:02]} Be4 {[%clk
00:14:47]} {[%emt 00:00:03]} 16. Qg5 {[%clk 00:13:32]} {[%emt 00:00:05]} f6
{[%clk 00:14:49]} {[%emt 00:00:04]} 17. Qh4 {[%clk 00:12:39]} {[%emt 00:00:57]}
Rfd8 {[%clk 00:14:31]} {[%emt 00:00:23]} 18. Rfd1 {[%clk 00:12:32]} {[%emt
00:00:12]} Bb8 {[%clk 00:14:15]} {[%emt 00:00:22]} 19. Rxd8+ {[%clk 00:11:19]}
{[%emt 00:01:17]} Rxd8 {[%clk 00:14:18]} {[%emt 00:00:03]} 20. Rd1 {[%clk
00:11:22]} {[%emt 00:00:01]} Re8 {[%clk 00:11:44]} {[%emt 00:02:39]} 21. Bc4+
{[%clk 00:08:18]} {[%emt 00:03:10]} Kh8 {[%clk 00:11:48]} {[%emt 00:00:01]} 22.
Bd3 {[%clk 00:08:17]} {[%emt 00:00:06]} Qd6 {[%clk 00:11:23]} {[%emt 00:00:30]}
23. Be2 {[%clk 00:08:06]} {[%emt 00:00:15]} Qc7 {[%clk 00:11:23]} {[%emt
00:00:06]} 24. g3 {[%clk 00:07:33]} {[%emt 00:00:38]} Qf7 {[%clk 00:09:26]}
{[%emt 00:02:02]} 25. Nh2 {[%clk 00:06:26]} {[%emt 00:01:12]} Qa2 {[%clk
00:08:05]} {[%emt 00:01:26]} 26. Bxf6 {[%clk 00:05:39]} {[%emt 00:00:52]} Qxe2
{[%clk 00:07:05]} {[%emt 00:01:05]} 27. Rd7 {[%clk 00:05:43]} {[%emt 00:00:01]}
Be5 {[%clk 00:05:47]} {[%emt 00:01:23]} 28. Rxg7 {[%clk 00:05:11]} {[%emt
00:00:37]} Qd1+ {[%clk 00:05:51]} {[%emt 00:00:01]} 29. Nf1 {[%clk 00:05:12]}
{[%emt 00:00:04]} Bxf6 {[%clk 00:05:55]} {[%emt 00:00:01]} 30. Qxf6 {[%clk
00:05:15]} {[%emt 00:00:02]} Qf3 {[%clk 00:05:59]} {[%emt 00:00:01]} 31. Qxf3
{[%clk 00:04:06]} {[%emt 00:01:14]} Bxf3 {[%clk 00:06:02]} {[%emt 00:00:02]} 32.
Rxb7 {[%clk 00:04:04]} {[%emt 00:00:07]} Ne5 {[%clk 00:05:31]} {[%emt
00:00:36]} 33. Rc7 {[%clk 00:03:54]} {[%emt 00:00:15]} Rd8 {[%clk 00:05:34]}
{[%emt 00:00:03]} 34. Rc1 {[%clk 00:03:55]} {[%emt 00:00:03]} Rd3 {[%clk
00:05:36]} {[%emt 00:00:03]} 35. a4 {[%clk 00:03:50]} {[%emt 00:00:10]} Kg7
{[%clk 00:03:49]} {[%emt 00:01:52]} 36. b5 {[%clk 00:03:45]} {[%emt 00:00:09]}
a5 {[%clk 00:03:48]} {[%emt 00:00:06]} 37. Nh2 {[%clk 00:03:39]} {[%emt
00:00:12]} Rd1+ {[%clk 00:03:51]} {[%emt 00:00:03]} 38. Rxd1 {[%clk 00:03:42]}
{[%emt 00:00:01]} Bxd1 {[%clk 00:03:54]} {[%emt 00:00:02]} 39. f4 {[%clk
00:03:32]} {[%emt 00:00:15]} Nc4 {[%clk 00:03:58]} {[%emt 00:00:01]} 40. e4
{[%clk 00:03:32]} {[%emt 00:00:06]} Bxa4 {[%clk 00:04:00]} {[%emt 00:00:03]} 41.
Kf2 {[%clk 00:03:16]} {[%emt 00:00:19]} Bxb5 {[%clk 00:04:03]} {[%emt
00:00:02]} 42. Ke1 {[%clk 00:03:17]} {[%emt 00:00:05]} a4 {[%clk 00:04:01]}
{[%emt 00:00:07]} 43. Kd1 {[%clk 00:03:21]} {[%emt 00:00:01]} a3 {[%clk
00:04:04]} {[%emt 00:00:02]} 44. Kc2 {[%clk 00:03:24]} {[%emt 00:00:03]} a2
{[%clk 00:04:07]} 0-1